bitfinex-derivatives/quotes_ETHF0:USTF0_20250426
["timestamp","ask_amount","ask_price","bid_price","bid_amount"]
[1745639482318,1.7399,1799.5,1799.3,2.4434]
[1745639482617,1.7399,1799.5,1799.4,2.5304]
[1745639483314,7.0479,1799.5,1799.4,2.5304]
[1745639485721,7.0479,1799.5,1799.4,3.64141]
[1745639486813,7.0479,1799.5,1799.4,2.5304]
[1745639487216,1.7399,1799.5,1799.4,2.5304]
[1745639488215,7.0479,1799.5,1799.4,2.5304]
[1745639490118,1.7399,1799.5,1799.4,2.5304]
[1745639490322,1.7399,1799.5,1799.4,3.64141]
[1745639490917,1.7399,1799.5,1799.4,2.5304]
[1745639493421,2.85085,1799.5,1799.4,0.8564]
[1745639493622,1.11101,1799.4,1799.3,0.862]
[1745639493816,2.72811,1799.4,1799.3,0.862]
[1745639494011,1.6171,1799.4,1799.3,0.862]
[1745639494217,4.75894609,1799.6,1799.3,3.61373]
[1745639494516,3.64802609,1799.6,1799.3,3.61373]
[1745639494711,1.6171,1799.5,1799.3,3.61373]
[1745639495119,1.6171,1799.5,1799.4,1.6407]
[1745639495425,1.6171,1799.5,1799.4,2.4849]
[1745639496221,6.9251,1799.5,1799.4,2.4849]
[1745639497714,8.03605,1799.5,1799.4,2.4849]
[1745639498126,2.72805,1799.5,1799.4,2.4849]
[1745639499924,1.6171,1799.5,1799.4,2.4849]
[1745639500225,1.6171,1799.5,1799.4,3.59591]
[1745639500426,3.2078,1799.6,1799.4,3.59591]
[1745639500627,4.8486,1799.6,1799.5,1.5958]
[1745639501127,11.26749,1799.6,1799.5,1.5958]
[1745639502031,1.11095,1799.5,1799.4,0.8442]
[1745639502227,2.81695,1799.5,1799.3,1.97304]
[1745639502528,1.706,1799.5,1799.3,1.97306]
[1745639502833,1.706,1799.4,1799.3,1.97306]
[1745639503427,4.9138,1799.4,1799.2,1.6323]
[1745639503619,1.11113,1799.2,1799.1,1.7133]
[1745639503822,2.5395,1799.3,1799.1,1.7133]
[1745639504024,1.706,1799.2,1799.1,1.7133]
[1745639504627,6.02493,1799.2,1799.1,0.84]
[1745639504828,1.11126,1799.0,1798.9,1.6323]
[1745639505023,3.2078,1799.0,1798.7,5.368]
[1745639505223,1.11138,1798.8,1798.7,3.2794]
[1745639505534,4.39064,1798.9,1798.7,3.2794]
[1745639505728,1.11134,1798.9,1798.7,4.39083]
[1745639505934,4.3191,1799.0,1798.8,1.6274]
[1745639506235,1.6239,1798.9,1798.8,1.6274]
[1745639506432,3.2078,1799.0,1798.8,2.73878]
[1745639506929,3.2078,1799.0,1798.9,1.6274]
[1745639507340,4.8317,1799.0,1798.9,1.6274]
[1745639507936,4.8317,1799.0,1798.9,2.73872]
[1745639508138,4.8317,1799.0,1798.9,1.6274]
[1745639509134,5.94296,1799.0,1798.9,1.6274]
[1745639509345,4.8317,1799.0,1798.9,1.6274]
[1745639509845,1.6239,1799.0,1798.9,1.6274]
[1745639510437,2.73516,1799.0,1798.9,1.6274]
[1745639510638,1.6239,1799.0,1798.9,1.6274]
[1745639510843,1.6239,1799.0,1798.9,2.73872]
[1745639511739,5.97436,1799.2,1798.9,2.73872]
[1745639511938,6.02596,1799.2,1799.0,3.4034]
[1745639512146,6.02596,1799.2,1799.1,1.7478]
[1745639513247,4.9148,1799.2,1799.1,1.7478]
[1745639513644,6.02593,1799.2,1799.1,1.7478]
[1745639514248,1.11128,1799.0,1798.7,1.11141]
[1745639514448,1.11128,1799.0,1798.8,3.2857]
[1745639514647,1.632,1798.9,1798.8,3.2857]
[1745639515041,1.632,1798.9,1798.8,8.5937]
[1745639515243,1.632,1798.9,1798.8,9.70508]
[1745639516551,2.76914,1799.1,1798.8,9.70508]
[1745639516752,1.632,1799.0,1798.9,2.79282]
[1745639517242,1.1112,1799.1,1798.9,2.79277]
[1745639517442,1.1112,1799.1,1799.0,1.7336]
[1745639519346,4.8714,1799.2,1799.0,2.84482]
[1745639519553,5.98254,1799.2,1799.1,0.8167]
[1745639519853,2.77474,1799.2,1799.1,3.3658]
[1745639520153,1.11112,1799.3,1799.1,3.3658]
[1745639520355,2.84012,1799.3,1799.1,4.47699]
[1745639520552,1.729,1799.3,1799.1,4.47699]
[1745639520753,1.729,1799.2,1799.1,4.47699]
[1745639521048,5.14966,1799.4,1799.1,4.47699]
[1745639521250,4.9368,1799.4,1799.3,1.11107]
[1745639521451,4.9368,1799.4,1799.2,2.73129]
[1745639521852,4.9368,1799.4,1799.3,1.6202]
[1745639522152,1.729,1799.4,1799.3,2.73127]
[1745639522654,1.729,1799.4,1799.3,1.6202]
[1745639522853,2.84001,1799.4,1799.3,1.6202]
[1745639523152,1.729,1799.4,1799.3,1.6202]
[1745639523752,1.729,1799.4,1799.3,2.73127]
[1745639524144,1.729,1799.4,1799.3,1.6202]
[1745639524747,1.729,1799.4,1799.3,2.73127]
[1745639525850,2.84001,1799.4,1799.1,2.74338]
[1745639526041,1.11107,1799.3,1799.2,1.5895]
[1745639526248,2.79227,1799.3,1799.2,1.5895]
[1745639526552,1.6812,1799.3,1799.2,1.5895]
[1745639528453,2.79227,1799.3,1799.2,1.5895]
[1745639529645,1.6812,1799.3,1799.2,1.5895]
[1745639529849,4.31887,1799.4,1799.2,2.70063]
[1745639530249,4.31887,1799.4,1799.3,1.6108]
[1745639530450,5.99077,1799.4,1799.3,1.6108]
[1745639530846,3.2078,1799.6,1799.5,1.11089]
[1745639531458,3.2078,1799.6,1799.5,2.72169]
[1745639532161,3.2078,1799.6,1799.5,8.02969]
[1745639532655,3.2078,1799.6,1799.5,11.74469]
[1745639533254,3.2078,1799.6,1799.5,6.43669]
[1745639533461,3.2078,1799.6,1799.5,5.3258]
[1745639533462,4.31869,1799.6,1799.5,5.3258]
[1745639533660,5.93469,1799.6,1799.5,6.43675]
[1745639534060,5.93469,1799.6,1799.5,5.3258]
[1745639534362,4.8238,1799.6,1799.5,6.43675]
[1745639534866,5.93469,1799.6,1799.5,6.43675]
[1745639535664,4.8238,1799.6,1799.5,6.43675]
[1745639536658,3.2078,1799.6,1799.5,6.43675]
[1745639536859,1.11083,1799.7,1799.6,1.11089]
[1745639537159,5.9884,1799.8,1799.6,1.7052]
[1745639537362,5.9884,1799.8,1799.7,0.8075]
[1745639537660,5.9884,1799.8,1799.7,1.6333]
[1745639537860,5.9884,1799.8,1799.7,3.3385]
[1745639539169,3.2078,1799.8,1799.7,4.44932]
[1745639539469,4.31856,1799.8,1799.7,3.3385]
[1745639539768,4.31856,1799.8,1799.5,4.82591]
[1745639539961,1.7081,1799.7,1799.6,1.11089]
[1745639540162,1.7081,1799.7,1799.6,2.79149]
[1745639543769,3.2078,1799.9,1799.6,2.79149]
[1745639543770,4.31855,1799.9,1799.7,1.11082]
[1745639543965,5.91875,1799.9,1799.7,2.75632]
[1745639544160,1.6002,1799.8,1799.7,2.75632]
[1745639544369,4.31855,1799.9,1799.7,2.75632]
[1745639544571,1.11076,1799.8,1799.7,1.6455]
[1745639544768,2.82286,1799.8,1799.7,1.6455]
[1745639545274,1.11084,1799.7,1799.5,6.50022]
[1745639545475,1.7121,1799.7,1799.6,1.5957]
[1745639545675,1.7121,1799.7,1799.6,2.70659]
[1745639546767,1.11089,1799.6,1799.5,1.6743]
[1745639547272,1.95429,1799.6,1799.5,1.6743]
[1745639547466,0.8434,1799.6,1799.5,1.6743]
[1745639547868,2.4665,1799.6,1799.5,2.78525]
[1745639550075,2.4665,1799.6,1799.5,4.47955]
[1745639550280,2.73399,1799.6,1799.5,3.3686]
[1745639551279,1.6231,1799.6,1799.5,3.3686]
[1745639551578,1.6231,1799.6,1799.5,4.47955]
[1745639551974,1.6231,1799.6,1799.5,3.3686]
[1745639552172,2.73399,1799.6,1799.5,3.3686]
[1745639552682,1.6231,1799.6,1799.5,4.47955]
[1745639553481,1.6231,1799.6,1799.5,3.3686]
[1745639554084,1.6231,1799.6,1799.5,4.47955]
[1745639556083,2.73399,1799.6,1799.5,3.3686]
[1745639557271,2.73399,1799.6,1799.5,0.8485]
[1745639557472,1.11107,1799.3,1799.2,2.4974]
[1745639557691,1.11107,1799.3,1799.2,6.2094]
[1745639558876,1.6992,1799.3,1799.2,6.2094]
[1745639564786,2.81027,1799.3,1799.2,6.2094]
[1745639566284,1.6992,1799.3,1799.2,6.2094]
[1745639566682,2.81027,1799.3,1799.2,6.2094]
[1745639573692,3.2078,1799.5,1799.4,1.11101]
[1745639573996,4.789,1799.8,1799.5,1.11094]
[1745639574196,4.789,1799.8,1799.6,3.3073]
[1745639574399,5.89976,1799.8,1799.7,1.6283]
[1745639574892,3.2078,1799.8,1799.7,1.6283]
[1745639575486,3.2078,1799.8,1799.7,2.73912]
[1745639575900,3.2078,1799.8,1799.7,1.6283]
[1745639577995,1.11072,1799.9,1799.7,1.6283]
[1745639578197,4.31852,1799.9,1799.7,1.6283]
[1745639578996,1.11076,1799.8,1799.7,1.6283]
[1745639582189,5.95215,1799.9,1799.7,1.6283]
[1745639582984,2.74435,1799.9,1799.7,1.6283]
[1745639583390,5.95215,1799.9,1799.7,1.6283]
[1745639586201,5.95215,1799.9,1799.7,2.73912]
[1745639586803,1.11076,1799.8,1799.7,1.6283]
[1745639586998,1.11082,1799.7,1799.6,1.679]
[1745639587198,4.31862,1799.7,1799.6,3.3031]
[1745639588107,3.2078,1799.7,1799.6,4.41399]
[1745639589502,2.80181,1799.8,1799.6,4.41399]
[1745639589699,2.80181,1799.8,1799.7,1.6241]
[1745639590704,1.691,1799.8,1799.7,1.6241]
[1745639590905,2.80176,1799.8,1799.7,1.6241]
[1745639595696,2.80176,1799.8,1799.4,3.71]
[1745639595697,1.691,1799.8,1799.4,3.71]
[1745639595902,1.11095,1799.5,1799.4,3.71]
[1745639596705,1.11095,1799.5,1799.4,5.3046]
[1745639596907,2.75465,1799.5,1799.4,5.3046]
[1745639598806,1.6437,1799.5,1799.4,5.3046]
[1745639599001,1.6437,1799.5,1799.4,6.41561]
[1745639599309,5.16165,1799.7,1799.4,6.41561]
[1745639599510,1.6373,1799.6,1799.5,1.6954]
[1745639599909,2.74819,1799.6,1799.5,1.6954]
[1745639601611,3.2078,1799.7,1799.5,1.6954]
[1745639601811,3.2078,1799.7,1799.6,0.8353]
[1745639602006,3.2078,1799.7,1799.6,1.6431]
[1745639602210,4.8451,1799.7,1799.6,3.3385]
[1745639603514,5.95592,1799.7,1799.6,1.6431]
[1745639603717,5.95592,1799.7,1799.6,0.8353]
[1745639603913,1.1109,1799.6,1799.4,4.82099]
[1745639604114,2.6938,1799.6,1799.4,6.43589]
[1745639604512,2.6938,1799.6,1799.5,1.6149]
[1745639605018,1.5829,1799.6,1799.5,1.6149]
[1745639606010,1.5829,1799.6,1799.3,1.6139]
[1745639606209,1.11107,1799.3,1799.2,1.7516]
[1745639608511,2.78206,1799.4,1799.2,1.7516]
[1745639609614,1.671,1799.4,1799.2,2.86268]
[1745639610118,1.671,1799.4,1799.3,1.7046]
[1745639610512,2.78201,1799.4,1799.3,1.7046]
[1745639613721,1.671,1799.4,1799.3,1.7046]
[1745639613918,1.671,1799.4,1799.3,2.81567]
[1745639614119,4.31875,1799.5,1799.3,2.81567]
[1745639614320,4.31875,1799.5,1799.4,2.4599]
[1745639614521,4.31875,1799.5,1799.4,3.3265]
[1745639615123,5.93815,1799.5,1799.4,3.3265]
[1745639625426,2.77753,1799.4,1798.9,3.2078]
[1745639625635,1.1112,1799.1,1799.0,3.3282]
[1745639626332,1.1112,1799.1,1799.0,8.6362]
[1745639626534,2.76598,1799.2,1799.0,8.6362]
[1745639627222,2.76598,1799.2,1799.0,3.3282]
[1745639627623,2.76598,1799.2,1799.1,1.7002]
[1745639630623,6.6548,1799.2,1798.6,3.708]
[1745639630821,1.11144,1798.7,1798.6,1.638]
[1745639631028,4.31924,1798.7,1798.6,1.638]
[1745639631528,1.11166,1798.4,1798.1,3.708]
[1745639631721,1.11166,1798.4,1798.2,0.8748]
[1745639632028,1.11166,1798.4,1798.2,2.6048]
[1745639632333,2.78596,1798.4,1798.2,7.9128]
[1745639632732,2.78596,1798.4,1798.3,1.73]
[1745639632927,1.6743,1798.4,1798.3,1.73]
[1745639633328,2.78593,1798.4,1798.3,1.73]
[1745639633728,1.6743,1798.4,1798.3,1.73]
[1745639634636,2.78593,1798.4,1798.3,1.73]
[1745639634938,1.6743,1798.4,1798.3,1.73]
[1745639635931,2.78593,1798.4,1798.3,1.73]
[1745639636130,2.78593,1798.4,1798.3,7.038]
[1745639638326,1.6743,1798.4,1798.3,7.038]
[1745639639038,2.78593,1798.4,1798.3,7.038]
[1745639639238,2.78593,1798.4,1798.3,7.8834]
[1745639641341,2.78593,1798.4,1798.3,2.5754]
[1745639652744,1.11163,1798.4,1798.3,2.5754]
[1745639655247,1.11163,1798.4,1798.3,7.8834]
[1745639656242,2.72213,1798.4,1798.3,2.5754]
[1745639656547,1.11181,1798.1,1798.0,6.9158]
[1745639657247,1.5973,1798.2,1798.0,16.70985]
[1745639657446,1.5973,1798.2,1798.1,1.6998]
[1745639658053,2.70905,1798.2,1798.1,1.6998]
[1745639662955,1.11181,1798.1,1798.0,13.8982]
[1745639663152,2.78631,1798.1,1798.0,13.8982]
[1745639663352,2.78631,1798.1,1798.0,15.5544]
[1745639666152,2.78631,1798.1,1798.0,11.8464]
[1745639667152,2.78631,1798.1,1798.0,8.5158]
[1745639667355,5.99411,1798.1,1798.0,5.308]
[1745639668155,1.112,1797.8,1797.7,1.6607]
[1745639668459,1.112,1797.8,1797.7,0.8668]
[1745639668857,2.8444,1797.8,1797.7,0.8668]
[1745639669657,2.8444,1797.8,1797.7,2.614]
[1745639670153,3.2078,1797.9,1797.7,3.72604]
[1745639670358,1.1119,1798.0,1797.8,1.7472]
[1745639670557,1.1119,1798.0,1797.9,0.8773]
[1745639670947,5.96246,1798.1,1797.9,0.8773]
[1745639671153,4.8506,1798.1,1797.9,0.8773]
[1745639671553,4.8506,1798.1,1798.0,2.5697]
[1745639671957,5.96241,1798.1,1798.0,2.5697]
[1745639672760,4.8506,1798.1,1798.0,2.5697]
[1745639672952,3.2078,1798.1,1798.0,2.5697]
[1745639673552,4.31961,1798.1,1798.0,2.5697]
[1745639674253,3.2078,1798.1,1798.0,2.5697]
[1745639675257,3.2078,1798.1,1798.0,7.8777]
[1745639675458,4.31961,1798.1,1798.0,7.8777]
[1745639676258,4.31961,1798.1,1798.0,2.5697]
[1745639680665,5.97541,1798.1,1798.0,2.5697]
[1745639684176,2.76761,1798.1,1798.0,2.5697]
[1745639687880,1.6558,1798.1,1798.0,2.5697]
[1745639688075,2.76761,1798.1,1798.0,2.5697]
[1745639689279,2.76761,1798.1,1798.0,3.5697]
[1745639689478,2.76519937,1798.1,1798.0,3.5697]
[1745639691081,1.65338937,1798.1,1798.0,3.5697]
[1745639691582,2.76519937,1798.1,1798.0,3.5697]
[1745639696883,5.97299937,1798.1,1798.0,3.5697]
[1745639699393,3.2078,1798.1,1798.0,3.5697]
[1745639700286,3.2078,1798.1,1798.0,8.8777]
[1745639702593,4.31961,1798.1,1798.0,8.8777]
[1745639704692,5.99451,1798.1,1798.0,8.8777]
[1745639705087,5.99451,1798.1,1798.0,3.5697]
[1745639709592,5.99451,1798.1,1798.0,1.8225]
[1745639710499,5.99451,1798.1,1798.0,1.0]
[1745639711096,6.08075073,1798.1,1798.0,1.0]
[1745639711598,1.112,1797.8,1797.7,1.6081]
[1745639711795,1.11206,1797.7,1797.6,1.665]
[1745639711997,1.11221,1797.5,1797.3,3.703]
[1745639712300,1.11221,1797.5,1797.4,0.8147]
[1745639712500,1.11221,1797.5,1797.4,2.5195]
[1745639713206,1.6,1797.6,1797.4,8.93974]
[1745639713393,4.31989,1797.7,1797.5,1.7048]
[1745639713699,4.31989,1797.7,1797.6,0.828]
[1745639719007,1.11209,1797.7,1797.6,0.828]
[1745639719307,4.31989,1797.7,1797.6,0.828]
[1745639720706,4.31989,1797.7,1797.6,2.5024]
[1745639723701,1.11212,1797.6,1797.5,5.308]
[1745639723896,2.74572,1797.6,1797.5,7.8507]
[1745639725211,5.95352,1797.6,1797.5,7.8507]
[1745639725404,3.2078,1797.6,1797.5,8.96288]
[1745639725605,3.2078,1797.6,1797.5,7.8507]
[1745639726410,4.31992,1797.6,1797.5,7.8507]
[1745639728309,4.31992,1797.6,1797.5,5.308]
[1745639728607,6.82152,1797.6,1797.5,5.308]
[1745639729212,1.11225,1797.4,1797.3,1.6569]
[1745639729403,4.32005,1797.4,1797.3,1.6569]
[1745639730104,4.32005,1797.4,1797.3,6.9649]
[1745639731806,1.11225,1797.4,1797.3,6.9649]
[1745639732011,4.32005,1797.4,1797.3,6.9649]
[1745639737201,4.32005,1797.4,1796.0,1.11307]
[1745639737202,2.78085,1797.3,1796.0,1.11307]
[1745639737408,4.32073,1796.3,1796.2,1.6481]
[1745639737607,2.78248,1796.2,1795.7,4.0461]
[1745639737809,1.11324,1795.8,1795.7,0.8383]
[1745639738017,1.1133,1795.7,1795.6,0.8325]
[1745639738217,1.1133,1795.7,1795.6,6.1405]
[1745639738515,4.3211,1795.7,1795.6,4.10332]
[1745639739213,1.11336,1795.6,1795.5,5.308]
[1745639739412,4.32113,1795.7,1795.5,5.308]
[1745639740110,3.2078,1795.7,1795.5,5.308]
[1745639740414,4.32112,1795.7,1795.5,5.308]
[1745639740613,3.2078,1795.7,1795.5,6.42139]
[1745639740807,3.2078,1795.7,1795.6,1.11336]
[1745639741010,1.11307,1796.1,1795.7,1.11328]
[1745639741204,1.11307,1796.1,1795.7,1.91448]
[1745639741518,1.11312,1796.0,1795.7,0.8012]
[1745639742110,1.11312,1796.0,1795.7,6.1092]
[1745639742306,1.11312,1796.0,1795.7,7.22248]
[1745639742512,1.1131,1796.1,1795.8,1.11321]
[1745639742707,3.2078,1796.2,1795.8,1.11321]
[1745639742912,3.2078,1796.2,1795.9,4.32095]
[1745639743222,1.11291,1796.4,1796.0,1.11311]
[1745639743223,4.32067,1796.4,1796.0,1.11311]
[1745639743421,1.11293,1796.3,1795.9,9.62893]
[1745639743621,4.32071,1796.4,1796.0,1.11309]
[1745639743925,4.3207,1796.4,1796.1,0.8012]
[1745639744119,3.2078,1796.4,1796.1,1.91424]
[1745639745517,4.32067,1796.4,1796.1,1.91424]
[1745639745917,3.2078,1796.4,1796.1,1.91424]
[1745639746216,3.2078,1796.4,1796.2,1.11298]
[1745639746920,3.2078,1796.4,1796.0,5.308]
[1745639747221,4.32084,1796.2,1795.9,1.11317]
[1745639747425,1.11306,1796.1,1795.9,1.11317]
[1745639747923,3.2078,1796.2,1795.8,0.8737]
[1745639748118,4.32096,1796.0,1795.8,6.1817]
[1745639748618,3.2078,1796.0,1795.8,6.1817]
[1745639748824,3.2078,1796.0,1795.8,7.29493]
[1745639750720,3.2078,1796.0,1795.9,1.6365]
[1745639751321,3.2078,1796.0,1795.9,6.9445]
[1745639752911,6.9128,1796.2,1796.0,1.11308]
[1745639753114,8.02581,1796.2,1796.0,5.308]
[1745639753321,9.68191,1796.2,1796.1,1.7005]
[1745639753520,6.9128,1796.2,1796.1,1.7005]
[1745639753720,3.2078,1796.2,1796.1,1.7005]
[1745639754121,3.2078,1796.2,1796.1,2.546]
[1745639754426,3.2078,1796.2,1796.1,3.65905]
[1745639754822,1.11297,1796.3,1796.1,3.65905]
[1745639755029,3.2078,1796.2,1796.1,1.95855]
[1745639755624,12.01592,1796.6,1796.3,1.11287]
[1745639755625,8.02555,1796.6,1796.3,1.11287]
[1745639755826,1.11281,1796.5,1796.2,5.17294]
[1745639756022,1.11281,1796.5,1796.2,1.96514]
[1745639756223,1.11281,1796.5,1796.2,7.27314]
[1745639757020,8.02558,1796.6,1796.3,1.11292]
[1745639757329,9.73188,1796.6,1796.3,1.11292]
[1745639757735,1.11281,1796.5,1796.2,7.27314]
[1745639758433,8.6191,1796.6,1796.2,6.1602]
[1745639758621,3.2078,1796.4,1796.2,6.1602]
[1745639758822,4.32068,1796.4,1796.2,6.1602]
[1745639759820,3.2078,1796.4,1796.2,7.27317]
[1745639760226,4.32067,1796.4,1796.2,6.1602]
[1745639760523,3.2078,1796.4,1796.2,7.27318]
[1745639761723,4.32068,1796.4,1796.2,6.1602]
[1745639762532,4.32068,1796.4,1796.2,7.27319]
[1745639764129,3.2078,1796.4,1796.2,6.1602]
[1745639764431,3.2078,1796.4,1796.2,7.27317]
[1745639765624,4.32068,1796.4,1796.2,7.27317]
[1745639766527,3.2078,1796.4,1796.2,6.1602]
[1745639766837,3.2078,1796.4,1796.2,7.27316]
[1745639767628,4.32067,1796.4,1796.2,7.27316]
[1745639767828,3.2078,1796.4,1796.2,7.27316]
[1745639768831,3.2078,1796.4,1796.2,7.27314]
[1745639769033,3.2078,1796.4,1796.2,7.27313]
[1745639769532,3.2078,1796.4,1796.3,1.11293]
[1745639769937,3.2078,1796.6,1796.2,8.94264]
[1745639770128,4.51113,1796.8,1796.6,1.11274]
[1745639770334,3.2078,1796.8,1796.7,1.11268]
[1745639770736,3.2078,1796.8,1796.5,1.5851]
[1745639770937,1.56290893,1796.9,1796.7,1.11268]
[1745639771138,1.56290893,1796.9,1796.8,2.445]
[1745639771838,1.56290893,1796.9,1796.8,1.5851]
[1745639772039,1.11262,1796.8,1796.7,5.308]
[1745639772337,1.1128,1796.5,1796.4,2.4559]
[1745639772831,1.1128,1796.5,1796.4,1.5851]
[1745639773026,3.5201,1796.5,1796.4,1.5851]
[1745639773231,3.5201,1796.5,1796.4,6.8931]
[1745639773938,2.4073,1796.5,1796.4,6.8931]
[1745639774339,4.32058,1796.6,1796.4,6.8931]
[1745639774640,3.2078,1796.6,1796.5,1.6046]
[1745639774840,4.32054,1796.6,1796.5,1.6046]
[1745639775135,4.32054,1796.6,1796.5,6.9126]
[1745639775340,3.2078,1796.6,1796.5,6.9126]
[1745639776242,3.2078,1796.6,1796.5,8.0254]
[1745639777233,3.2078,1796.6,1796.5,6.9126]
[1745639777635,1.11268,1796.7,1796.5,6.9126]
[1745639777834,2.74038,1796.7,1796.6,1.7426]
[1745639778039,4.0362,1796.8,1796.6,1.7426]
[1745639778547,3.2078,1796.8,1796.6,2.85533]
[1745639778731,3.2078,1796.8,1796.7,0.7993]
[1745639778937,3.703,1796.9,1796.8,1.11262]
[1745639779141,0.44267305,1797.0,1796.8,1.11258]
[1745639779342,1.11245,1797.1,1796.9,1.7413]
[1745639779847,1.11249,1797.0,1796.9,1.7413]
[1745639780046,1.11262,1796.8,1796.7,6.9105]
[1745639780247,1.11262,1796.8,1796.7,1.6025]
[1745639781246,2.5942,1796.9,1796.7,6.9105]
[1745639781247,3.7068,1796.9,1796.7,6.9105]
[1745639781541,3.7068,1796.9,1796.7,8.6518]
[1745639781742,3.7068,1796.9,1796.8,1.7413]
[1745639781943,4.32032,1797.0,1796.8,1.7413]
[1745639782140,4.32032,1797.0,1796.8,8.16192]
[1745639782447,4.32032,1797.0,1796.8,7.0493]
[1745639782643,3.2078,1797.0,1796.9,1.7359]
[1745639782851,3.2078,1797.0,1796.9,2.84846]
[1745639783240,1.11244,1797.1,1796.9,7.0439]
[1745639783448,10.56522,1797.2,1797.0,1.7359]
[1745639783746,10.56522,1797.2,1797.0,2.5944]
[1745639784140,10.56522,1797.2,1797.1,1.7359]
[1745639784644,8.84977,1797.2,1797.1,1.7359]
[1745639786153,3.2078,1797.2,1797.1,1.7359]
[1745639786351,3.2078,1797.2,1797.1,2.5312]
[1745639787455,3.2078,1797.2,1797.1,3.64363]
[1745639787850,4.32002,1797.5,1797.1,2.5312]
[1745639788049,4.32002,1797.5,1797.2,1.7038]
[1745639788250,1.11225,1797.4,1797.2,1.7038]
[1745639788650,1.11225,1797.4,1797.3,0.8643]
[1745639789045,1.11225,1797.4,1797.3,7.7631]
[1745639791059,4.32003,1797.5,1797.3,7.7631]
[1745639791257,4.32003,1797.5,1797.4,1.583]
[1745639791758,1.56104108,1797.6,1797.4,1.583]
[1745639791962,1.11225,1797.4,1797.3,5.308]
[1745639792159,1.11225,1797.4,1797.1,4.0031]
[1745639792160,1.11237,1797.2,1797.1,0.7953]
[1745639792359,1.11237,1797.2,1797.1,2.3783]
[1745639792948,4.53945,1797.3,1797.1,2.3783]
[1745639793154,4.53945,1797.3,1797.2,1.583]
[1745639793351,4.62562968,1797.3,1797.2,1.583]
[1745639794161,1.11243,1797.1,1797.0,5.308]
[1745639794360,1.11243,1797.1,1797.0,1.6305]
[1745639795155,1.11243,1797.1,1797.0,6.9385]
[1745639795156,2.83003,1797.1,1797.0,6.9385]
[1745639796561,1.11243,1797.1,1797.0,6.9385]
[1745639807860,5.87,1797.3,1797.0,8.05099]
[1745639808060,5.87,1797.3,1797.1,3.2941]
[1745639808258,6.98235,1797.3,1797.2,1.6226]
[1745639809061,5.87,1797.3,1797.2,2.73497]
[1745639809261,5.87,1797.3,1797.2,6.9306]
[1745639811067,6.98231,1797.3,1797.2,6.9306]
[1745639811770,1.11231,1797.3,1797.2,6.9306]
[1745639817875,3.65669108,1797.6,1797.2,10.1384]
[1745639818072,1.11223,1797.5,1797.3,1.6389]
[1745639818464,1.11223,1797.5,1797.4,0.812]
[1745639818874,4.76886108,1797.6,1797.4,0.812]
[1745639819075,4.76886108,1797.6,1797.5,1.6329]
[1745639819279,1.56106108,1797.6,1797.5,1.6329]
[1745639819873,1.56106108,1797.6,1797.5,2.4992]
[1745639821679,0.44889108,1797.6,1797.5,2.4992]
[1745639821979,1.11208,1797.7,1797.5,2.4992]
[1745639822174,1.11208,1797.7,1797.6,1.5803]
[1745639822575,4.81202,1797.8,1797.6,2.69241]
[1745639822771,1.11202,1797.8,1797.6,2.69241]
[1745639822972,1.11202,1797.8,1797.7,2.4003]
[1745639823378,1.56686808,1797.8,1797.7,2.4003]
[1745639823575,0.45484808,1797.8,1797.7,2.4003]
[1745639823772,1.11187,1798.0,1797.7,3.51236]
[1745639823967,8.5443,1798.1,1797.8,1.5803]
[1745639824171,1.11192,1798.0,1797.9,0.8077]
[1745639825275,1.11194,1797.9,1797.8,1.5803]
[1745639825480,1.11215,1797.6,1797.4,3.2078]
[1745639825676,1.11215,1797.6,1797.5,0.8241]
[1745639826077,1.11215,1797.6,1797.5,6.1321]
[1745639828474,1.11215,1797.6,1797.5,6.9406]
[1745639828673,1.11215,1797.6,1797.5,8.6777]
[1745639833785,1.11208,1797.7,1797.5,12.99767]
[1745639834084,1.11208,1797.7,1797.6,1.7484]
[1745639836084,2.81364,1797.8,1797.6,1.7484]
[1745639837482,1.98769,1797.9,1797.6,2.86051]
[1745639837882,0.8757,1797.9,1797.7,1.5862]
[1745639838084,0.8757,1797.9,1797.7,2.69825]
[1745639838388,12.62321,1798.0,1797.7,2.69825]
[1745639838389,1.11181,1798.1,1797.8,1.93806]
[1745639838587,1.11181,1798.1,1797.9,0.7935]
[1745639838787,1.11181,1798.1,1797.9,2.3797]
[1745639839287,1.11181,1798.1,1798.0,1.5862]
[1745639839993,2.74891,1798.1,1798.0,1.5862]
[1745639841688,1.11181,1798.1,1798.0,1.5862]
[1745639844489,3.2078,1798.2,1798.0,1.5862]
[1745639844896,4.31955,1798.2,1798.1,0.8533]
[1745639846598,1.11175,1798.2,1798.1,0.8533]
[1745639847398,1.11181,1798.1,1798.0,1.5862]
[1745639847599,1.11181,1798.1,1798.0,2.4395]
[1745639848097,1.11181,1798.1,1798.0,7.7475]
[1745639848502,1.1118,1798.2,1798.0,10.9553]
[1745639848703,1.1118,1798.2,1798.1,1.644]
[1745639849698,1.11172,1798.3,1798.1,1.644]
[1745639849901,1.11175,1798.2,1798.1,1.644]
[1745639857496,1.11172,1798.3,1798.1,2.75579]
[1745639857898,1.11172,1798.3,1798.2,4.923]
[1745639858602,1.11166,1798.4,1798.2,4.923]